Cogmind - Beta 13 @@@ ROGUE MODE // 2024.05.22 @ 23:06:58 Player: Skergy Result: Destroyed by Y-45 Defender with Beam Rifle Performance ------------- Evolutions (2) 1000 Regions Visited (4) 800 Robots Destroyed (5) 25 Value Destroyed (52) 52 Prototype IDs (0) 0 Alien Tech Used (0) 0 Bonus (-18) -18 TOTAL SCORE: 1859 Bonus ------- Friendly Fire -18 Cogmind --------- Core Integrity 0/550 Matter 262/300 Energy 99/100 System Corruption 0% Temperature Cool (9) Movement Core (50) Location -8/Materials Parts ------- > --- POWER (1) -------- (None) > --- PROPULSION (4) --- (None) > --- UTILITY (3) ------ (None) > --- WEAPON (3) ------- (None) > --- INVENTORY (5) ---- Ion Engine Light Ion Engine Flight Unit Small Storage Unit Large Matter Pod (23) Peak State ------------ > --- POWER ------------ Light Angular Momentum Engine > --- PROPULSION ------- Aluminum Leg Aluminum Leg Makeshift Leg Compact Wheel > --- UTILITY ---------- Small Storage Unit Small Storage Unit Terrain Scanner > --- WEAPON ----------- Shock Rifle > --- INVENTORY -------- Ion Engine Light Ion Engine Light Treads Light Treads Flight Unit Large Matter Pod [Rating: 18] Favorites ----------- Power Ion Engine Engine Ion Engine Propulsion Aluminum Leg Leg Aluminum Leg Wheel Compact Wheel Utility Small Storage Unit Device Terrain Scanner Storage Small Storage Unit Weapon Assault Rifle Energy Gun Shock Rifle Ballistic Gun Assault Rifle Build | -11 -10 -10 -9 -8 ------- Run | Yrd Mat Min Mat Mat Slots Evolved 4 | . . . 2 2 Power . | . . . . . Propulsion 2 | . . . 2 . Utility 1 | . . . . 1 Weapon 1 | . . . . 1 Parts Attached 18 | 7 1 2 3 5 Power 2 | 1 . 1 . . Engine 2 | 1 . 1 . . Core . | . . . . . Reactor . | . . . . . Propulsion 8 | 3 . . 3 2 Treads . | . . . . . Leg 6 | 2 . . 3 1 Wheel 2 | 1 . . . 1 Hover . | . . . . . Flight . | . . . . . Utility 3 | 1 1 . . 1 Device 1 | . 1 . . . Storage 2 | 1 . . . 1 Processor . | . . . . . Hackware . | . . . . . Protection . | . . . . . Artifact . | . . . . . Weapon 5 | 2 . 1 . 2 Energy Gun 2 | . . . . 2 Energy Cannon . | . . . . . Ballistic Gun 3 | 2 . 1 . . Ballistic Cannon . | . . . . . Launcher . | . . . . . Special Weapon . | . . . . . Impact Weapon . | . . . . . Slashing Weapon . | . . . . . Piercing Weapon . | . . . . . Special Melee Weapon . | . . . . . Unidentified Prototypes . | . . . . . Parts Lost 14 | . . 3 3 8 Power 2 | . . 1 . 1 Propulsion 6 | . . . 2 4 Utility 1 | . . . . 1 Weapon 5 | . . 2 1 2 Highest Loss Streak 6 | . . 3 3 6 To Critical Strikes 1 | . . . . 1 Average Slot Usage (%) 79 | . 97 89 64 45 Engine 9 | . 14 11 11 2 Leg 24 | . 28 28 22 13 Device 12 | . 11 14 11 6 Storage 13 | . 14 14 11 12 Ballistic Gun 16 | . 28 21 8 . Naked Turns 40 | . . . . 40 Heaviest Build 20 | 14 15 17 17 20 Greatest Support 45 | 20 20 20 45 40 Greatest Overweight (x) 3 | 2 . . . 3 Average Overweight (x) . | . . . . . Largest Inventory Capacity 8 | 8 8 8 8 8 Average Capacity 7 | 6 8 8 8 7 Most Carried 8 | 7 7 8 8 7 Average Carried 7 | 4 6 7 8 5 Final Capacity 8 | 8 8 8 8 5 Final Carried 8 | 6 7 8 8 5 Class Distribution -------------------- 100% | Mutant Dominant Class ---------------- Mutant | -10/Materials Mutant | -10/Mines Mutant | -9/Materials Mutant | -8/Materials Resources | -11 -10 -10 -9 -8 ----------- Run | Yrd Mat Min Mat Mat Matter Collected 456 | 200 . 239 17 . Remotely . | . . . . . Salvage Created 172 | . . 155 17 . Parts 8 | . . 5 3 . Haulers Intercepted . | . . . . . Recyclers Shooed . | . . . . . Parts Field Recycled . | . . . . . Retrieved Matter . | . . . . . Parts Self-Destructed . | . . . . . Prevented . | . . . . . Kills | -11 -10 -10 -9 -8 ------- Run | Yrd Mat Min Mat Mat Combat Hostiles Destroyed 4 | . . 4 . . Guns 4 | . . 4 . . Classes Destroyed 4 | . . 3 1 . Recycler 1 | . . 1 . . Operator 1 | . . . 1 . Swarmer 3 | . . 3 . . Assembled 1 | . . 1 . . Best Kill Streak 4 | . . 4 1 . Combat Bots Only 3 | . . 3 . . Max Kills in Single Turn 1 | . . 1 1 . Gunslinging . | . . . . . Exploded . | . . . . . Melee . | . . . . . Uniques/NPCs Destroyed . | . . . . . Combat | -11 -10 -10 -9 -8 -------- Run | Yrd Mat Min Mat Mat Hostile Shots Fired 199 | . . 58 42 99 Missed 62 | . . 13 17 32 Damage Taken 2025 | . . 657 392 976 Core 753 | . . 82 109 562 Absorbed by Shields . | . . . . . Core Remaining (%) 79 | 100 . 67 72 . Volleys Fired 44 | . . 30 9 5 Largest 2 | . . 2 1 2 Hottest 100 | . . 40 20 100 Shots Fired 62 | . . 46 9 7 Gun 62 | . . 46 9 7 Cannon . | . . . . . Launcher . | . . . . . Special . | . . . . . Kinetic 55 | . . 46 9 . Thermal . | . . . . . Explosive . | . . . . . Electromagnetic 7 | . . . . 7 Robot Hit Streak 9 | . . 9 2 9 Robot Miss Streak 4 | . . 4 2 . Penetration Max . | . . . . . Secondary Targets 1 | . . 1 . . Max Gunslinging Chain 1 | . . 1 . . Shots Hit Robots 37 | . . 25 5 7 Core Hits 12 | . . 10 2 . Critical Kills . | . . . . . Critical Parts Destroyed . | . . . . . Critical Strikes . | . . . . . Melee Attacks . | . . . . . Impact . | . . . . . Slashing . | . . . . . Piercing . | . . . . . Sneak Attacks . | . . . . . Combat Hostiles . | . . . . . Follow-up Attacks . | . . . . . Damage Inflicted 518 | . . 336 59 123 Guns 502 | . . 332 59 111 Cannons . | . . . . . Explosions . | . . . . . Melee . | . . . . . Ramming 16 | . . 4 . 12 Kinetic 391 | . . 332 59 . Thermal . | . . . . . Explosive . | . . . . . Electromagnetic 111 | . . . . 111 Impact . | . . . . . Slashing . | . . . . . Piercing . | . . . . . Highest Corruption . | . . . . . Average Corruption . | . . . . . Corruption Purged . | . . . . . Corruption Blocked . | . . . . . Overload Shots . | . . . . . Overflow Damage . | . . . . . Projectiles . | . . . . . Explosions . | . . . . . Melee . | . . . . . Knockbacks . | . . . . . Impact . | . . . . . Kinetic . | . . . . . Secondary . | . . . . . Self-Inflicted Damage 6 | . . . . 6 Shots . | . . . . . Rammed 1 | . . . . 1 Targets Rammed 2 | . . 1 . 1 Kicked 1 | . . 1 . . Crushed . | . . . . . Highest Temperature 16 | . . 13 . 16 Average Temperature 8 | . . 7 . 8 Received Heat Transfer 332 | . . 80 126 126 Siege Activations . | . . . . . Robots Corrupted . | . . . . . Combat Hostiles . | . . . . . Parts Fried . | . . . . . Impact Corruptions . | . . . . . Robots Melted . | . . . . . Combat Hostiles . | . . . . . Parts Melted . | . . . . . Heat Transferred . | . . . . . Parts Sabotaged . | . . . . . Parts Stolen . | . . . . . Parts Stripped . | . . . . . Power Chain Reactions . | . . . . . Alert | -11 -10 -10 -9 -8 ------- Run | Yrd Mat Min Mat Mat Peak Influence 100 | . . 90 35 100 Initial . | . . . . . Average 28 | . . 44 12 7 Maximum Alert Level . | . . . . . Low Security (%) 100 | 100 100 100 100 100 Level 1 . | . . . . . Level 2 . | . . . . . Level 3 . | . . . . . Level 4 . | . . . . . Level 5 . | . . . . . High Security . | . . . . . Max Security . | . . . . . Squads Dispatched . | . . . . . Investigation . | . . . . . Extermination . | . . . . . Reinforcement . | . . . . . Assault . | . . . . . Garrison . | . . . . . Intercept . | . . . . . Searches Triggered . | . . . . . Construction Impeded . | . . . . . Haulers Reinforced . | . . . . . Active Scanning Responses . | . . . . . Cargo Convoy Interrupts . | . . . . . Stealth | -11 -10 -10 -9 -8 --------- Run | Yrd Mat Min Mat Mat Distress Signals 5 | . . . . 5 Communications Jammed . | . . . . . Distress Signals . | . . . . . Times Spotted 34 | . 1 11 5 17 Peak Tracking Total 12 | . 1 4 4 12 Tactical Retreats 5 | . . 3 . 2 Traps | -11 -10 -10 -9 -8 ------- Run | Yrd Mat Min Mat Mat Traps Triggered 1 | . . . 1 . Indirectly . | . . . . . Trap Hack Attempts . | . . . . . Triggered . | . . . . . Disarmed . | . . . . . Reprogrammed . | . . . . . Reused . | . . . . . Traps Extracted . | . . . . . Installed . | . . . . . Triggered . | . . . . . Machines | -11 -10 -10 -9 -8 ---------- Run | Yrd Mat Min Mat Mat Machines Disabled . | . . . . . Max in Single Turn . | . . . . . Machines Repaired . | . . . . . Machines Dismantled . | . . . . . Machines Sabotaged . | . . . . . Overloaded Fab Kills . | . . . . . Hacking | -11 -10 -10 -9 -8 --------- Run | Yrd Mat Min Mat Mat Machines Accessed 4 | . . 1 1 2 Terminals 4 | . . 1 1 2 Fabricators . | . . . . . Repair Stations . | . . . . . Recycling Units . | . . . . . Scanalyzers . | . . . . . Garrison Access . | . . . . . Total Hacks 5 | . . 1 1 3 Successful 1 | . . . . 1 Failed 4 | . . 1 1 2 Catastrophic 2 | . . 1 . 1 Database Lockouts . | . . . . . Manual 3 | . . 1 1 1 Terminals 5 | . . 1 1 3 Fabricators . | . . . . . Repair Stations . | . . . . . Recycling Units . | . . . . . Scanalyzers . | . . . . . Garrison Access . | . . . . . Terminal Hacks 1 | . . . . 1 Zone Layout 1 | . . . . 1 Fabricator Hacks . | . . . . . Repair Station Hacks . | . . . . . Recycling Unit Hacks . | . . . . . Scanalyzer . | . . . . . Garrison Access Hacks . | . . . . . Unauthorized Hacks . | . . . . . Terminals . | . . . . . Fabricators . | . . . . . Repair Stations . | . . . . . Recycling Units . | . . . . . Scanalyzers . | . . . . . Garrison Access . | . . . . . Data Cores Recovered 1 | . . . 1 . Used 1 | . . . 1 . Hacking Detections 2 | . . . 1 1 Full Trace Events . | . . . . . Feedback Events . | . . . . . Feedback Blocked . | . . . . . Robot Schematics Acquired . | . . . . . Robots Built . | . . . . . Authchips . | . . . . . Time . | . . . . . Total Robot Build Rating . | . . . . . Part Schematics Acquired . | . . . . . Parts Built . | . . . . . Authchips . | . . . . . Time . | . . . . . Total Part Build Rating . | . . . . . Parts Repaired . | . . . . . Time . | . . . . . Parts Recycled . | . . . . . Recycled Matter . | . . . . . Retrieved Matter . | . . . . . Retrieved Components . | . . . . . Parts Scanalyzed . | . . . . . Part Schematics Acquired . | . . . . . Parts Damaged . | . . . . . Bothacking | -11 -10 -10 -9 -8 ------------ Run | Yrd Mat Min Mat Mat Used RIF Installer . | . . . . . Robots Hacked . | . . . . . Non-combat . | . . . . . Combat . | . . . . . Robot Hacks Applied . | . . . . . Relay Couplers Released . | . . . . . Fabnet Peak Effective % . | . . . . . Robots Rewired . | . . . . . Allies Hacked . | . . . . . Hacks Repelled . | . . . . . Allies | -11 -10 -10 -9 -8 -------- Run | Yrd Mat Min Mat Mat Total Allies 2 | . . 2 . . Largest Group 2 | . . 2 2 . Highest-Rated Group 43 | . . 43 43 . Highest-Rated Ally 31 | . . 31 31 . Total Orders . | . . . . . Ally Attacks 16 | . . 14 2 . Total Damage 211 | . . 169 42 . Kills 4 | . . 4 . . Allies Corrupted . | . . . . . Allies Melted . | . . . . . Intel | -11 -10 -10 -9 -8 ------- Run | Yrd Mat Min Mat Mat Robot Analysis Total . | . . . . . Derelict Logs Recovered 2 | . . 2 . . Drone Launches . | . . . . . Drone Recoveries . | . . . . . Exploration | -11 -10 -10 -9 -8 ------------- Run | Yrd Mat Min Mat Mat Turns Passed 977 | 51 61 559 161 145 Spaces Moved 713 | 34 49 372 107 151 Core 105 | 10 . . . 95 Treads . | . . . . . Legs 606 | 22 49 372 107 56 Wheels 2 | 2 . . . . Hover . | . . . . . Flight . | . . . . . Fastest Speed 50 | 50 120 120 120 50 Average Speed 111 | 104 120 120 122 82 Slowest Speed 200 | 150 120 120 130 200 Overloaded Moves . | . . . . . Propulsion Burnouts . | . . . . . Robots Hopped . | . . . . . Cave-ins Triggered . | . . . . . Exploration Rate (%) 25 | 4 10 71 16 25 Regions Visited 4 Branch Regions 1 Pre-discovered Areas . | . . . . . Known Exits Taken 1 | . . . 1 . Unknown Exits Taken 3 | 1 1 1 . . Scrap Searched 1 | . . 1 . . Spaces Dug . | . . . . . Terrain Destroyed . | . . . . . Melee . | . . . . . Projectile . | . . . . . AOE . | . . . . . Terrain Rammed . | . . . . . Walls Destroyed . | . . . . . Machines Disabled . | . . . . . Actions | -11 -10 -10 -9 -8 --------- Run | Yrd Mat Min Mat Mat Total 826 | 47 50 439 126 164 Wait 37 | . . 29 8 . Move 709 | 33 48 371 106 151 Hop . | . . . . . Pick Up 11 | 6 1 4 . . Fast Attach 14 | 6 1 1 3 3 Attach 4 | 1 . 1 . 2 Detach 2 | 1 . . . 1 Swap . | . . . . . Drop 3 | . . 2 . 1 Fire 44 | . . 30 9 5 Melee . | . . . . . Ram 1 | . . . . 1 Kick 1 | . . 1 . . Crush . | . . . . . Escape Stasis . | . . . . . Rewire . | . . . . . Trap . | . . . . . Miscellaneous . | . . . . . Route ------- -11/Scrapyard -10/Materials -10/Mines -9/Materials -8/Materials (discovered 1 exit: [*Fac]) History --------- Turn | Location | Event 9 | -11/Scrapyard | Discovered new exit (range 14) 52 | -11/Scrapyard | Entered Materials 52 | -10/Materials | Discovered new exit (range 15) 113 | -10/Materials | Entered Mines 120 | -10/Mines | Met a Derelict bent on vengeance 137 | -10/Mines | Learned 2 Materials zone layouts 313 | -10/Mines | Learned Materials stockpile data 333 | -10/Mines | Build established: Mutant 339 | -10/Mines | Assembled infested the area 344 | -10/Mines | Assisted by a Guerilla fighting off Assembled 434 | -10/Mines | Lost 3 parts (1p2w) 655 | -10/Mines | Discovered new exit (range 6) 672 | -10/Mines | Entered Materials 672 | -9/Materials | Accompanied by 2 allies 672 | -9/Materials | Evolved 2 slots: Propulsion x2 673 | -9/Materials | Identified exit to Materials 677 | -9/Materials | Led the pair of lost Derelicts to an unsafe place 831 | -9/Materials | Lost 3 parts (2n1w) 833 | -9/Materials | Entered another Materials area 833 | -8/Materials | Evolved 2 slots: Utility x1, Weapon x1 942 | -8/Materials | Core integrity fell below 50% 949 | -8/Materials | Discovered new exit (range 12) 953 | -8/Materials | Core integrity fell below 20% 969 | -8/Materials | Lost 6 parts (3n1u2w) 978 | -8/Materials | Destroyed by Y-45 Defender with Beam Rifle Last Messages --------------- 00938_ Terrain Scanner destroyed. 00939_ R-06 Scavenger collects Heat Sink. 00940_ K-01 Serf collects debris. 00944_ Slammed into W-25 Informer. 00944_ S-10 Pest destroyed. 00945_ U-05 Engineer builds a Door. 00946_ K-01 Serf collects debris. 00949_ EXIT=FOUND 00949_ K-01 Serf collects debris. 00952_ Penetrated by Slug. 00952_ Knocked back. 00953_ K-01 Serf collects debris. 00955_ Slug penetrates Wall. 00955_ Knocked back. 00971_ K-01 Serf collects debris. 00973_ Connecting with Terminal... >>Layout(Zone) Retrieving Zone 5V layout... Downloaded map data. 00975_ K-01 Serf collects debris. Map ----- +----------------------------------------------------+ | | | | | | | | | | | | | | | | | | | | | | | | | | | ??????????????????????????????????? | | ??????????????????????????????????? | | ????????????????????????#####?????? | | ????## # """ # #?? | | ???? # """ # """ # """ #?? | | ???? # """ # """ # """ #?? | | ???? # """ # # """ #?? | | ???? # # """ # / #?? | | ???? # """ # """ # """ #?? | | ???? # """ # """ # """ #?? | | ???? # """ # # """ #?? | | ???? # #######+## #?? | | ???? ######+####### ##@#######?? | | ???? #?????? | | ???? Y #?????? | | ????############### ##+########? | | ????# #??????## ## #? | | ????# """ ######### ## #? | | ????# """ ## T ## #? | | ????# """ ## ## #? | | ????# ## + #? | | ????##+###### ## #? | | ???? ## ## #? | | ???? ## """" ## #? | | ????##### ## """" ####/######## | | ????##??# ## """" #### ## # | | ???? #??# ## ## # | | ???? #??# # # | | ???? #??# + ] # | | ???? #??# #### # # | | ???? #??# #####"###### # """# | | ???? #??# ## ## # """# | | ???? #??# ## ## # """# | | ???? #??######### """ ## # """# | | ??????????????????????????# #?????? | | ??????????????????????????# #?????? | | ??????????????????????????# #?????? | +----------------------------------------------------+ Best States ------------- Heat Dissipation 31 Energy Generation 18 Energy Capacity 250 Matter Stores 300 Matter Capacity 300 Sight Range 16 Terrain Scan Range 14 Terrain Scan Density 10 Evasion (%) 55 Item Schematics ----------------- None Robot Schematics ------------------ None Fabricated ------------ Nothing Alien Tech Used ----------------- None Achievements -------------- None Challenges ------------ None Game ------ Seed DiametricIntegratedScythe Manual? 0 Play Time 00:13:33 Cumulative 18.6 hours Start 2024.05.22 @ 22:55:48 End 2024.05.22 @ 23:06:58 Sessions 1 Manual Loads 0 Difficulty Rogue Special Mode None Game No. 16 Rogue 16 Adventurer 0 Explorer 0 Win Type - Total 0 Types 0/0/0/0/0/0/0/0/0 Lore% 19 Gallery% 23 Achievement% 19 Wizard Run 0 Options --------- Layout 1 ASCII 0 Keyboard 1 Movement Numpad Keybinds 0 Fullscreen 1 Font 32/Cog Map View 50x35 Zoom Use 0% Tactical HUD 1 Map Filters NONE Filters NONE Steam 1 RUN: 092b8c5a-9d4e-416c-9c81-4e358707c8a5